Cogmind - Beta 10.2 @@@ ROGUE MODE // 2020.12.05 @ 13:50:03 Player: BloodOwl Result: Destroyed by G-34 Mercenary with Small Laser Performance ------------- Evolutions (0) 0 Regions Visited (1) 200 Robots Destroyed (16) 80 Value Destroyed (460) 460 Prototype IDs (0) 0 Alien Tech Used (0) 0 Bonus (0) 0 TOTAL SCORE: 740 Bonus ------- None Cogmind --------- Core Integrity 0/250 Matter 300/300 Energy 100/100 System Corruption 1% Temperature Cool (6) Movement Walking (150) Ox1 Location -10/Materials Parts ------- > --- POWER (1) -------- (None) > --- PROPULSION (2) --- Aluminum Leg > --- UTILITY (2) ------ Large Storage Unit > --- WEAPON (2) ------- Mining Claw > --- INVENTORY (10) --- Wheel High-capacity Storage Unit High-capacity Storage Unit Sensor Array Seismic Analyzer Transport Network Coupler Mining Claw Peak State ------------ > --- POWER ------------ Light Ion Engine > --- PROPULSION ------- Aluminum Leg Aluminum Leg > --- UTILITY ---------- Heat Sink Improved Terrain Scanner > --- WEAPON ----------- Small Laser Assault Rifle > --- INVENTORY -------- Aluminum Leg Wheel Small Laser [Rating: 8] Favorites ----------- Power Light Ion Engine Engine Light Ion Engine Propulsion Aluminum Leg Leg Aluminum Leg Wheel Wheel Utility Heat Sink Device Heat Sink Storage Large Storage Unit Weapon Assault Rifle Energy Gun Small Laser Ballistic Gun Assault Rifle Slashing Weapon Mining Claw Build | -11 -10 ------- Run | Scr Mat Slots Evolved . | . . Power . | . . Propulsion . | . . Utility . | . . Weapon . | . . Parts Attached 21 | 12 9 Power 1 | 1 . Engine 1 | 1 . Core . | . . Reactor . | . . Propulsion 10 | 5 5 Treads . | . . Leg 7 | 2 5 Wheel 3 | 3 . Hover . | . . Flight . | . . Utility 3 | 2 1 Device 2 | 2 . Storage 1 | . 1 Processor . | . . Hackware . | . . Protection . | . . Artifact . | . . Weapon 7 | 4 3 Energy Gun 4 | 2 2 Energy Cannon . | . . Ballistic Gun 2 | 2 . Ballistic Cannon . | . . Launcher . | . . Special Weapon . | . . Impact Weapon . | . . Slashing Weapon 1 | . 1 Piercing Weapon . | . . Special Melee Weapon . | . . Unidentified Prototypes . | . . Parts Lost 6 | . 6 Power 1 | . 1 Propulsion 1 | . 1 Utility 1 | . 1 Weapon 3 | . 3 Highest Loss Streak 2 | . 2 Average Slot Usage (%) 76 | . 76 Engine 2 | . 2 Leg 24 | . 24 Device 10 | . 10 Storage 13 | . 13 Energy Gun 11 | . 11 Ballistic Gun 10 | . 10 Slashing Weapon 3 | . 3 Naked Turns . | . . Heaviest Build 23 | 8 23 Greatest Support 20 | 10 20 Greatest Overweight (x) 6 | . 6 Average Overweight (x) . | . 1 Largest Inventory Capacity 10 | 4 10 Average Capacity 7 | 4 9 Most Carried 10 | 4 10 Average Carried 4 | 2 6 Final Capacity 10 | 4 10 Final Carried 7 | 3 7 Class Distribution -------------------- 78% | Mutant 21% | Scavenger-Mutant Dominant Class ---------------- Mutant | -10/Materials Resources | -11 -10 ----------- Run | Scr Mat Matter Collected 554 | 310 244 Remotely . | . . Salvage Created 615 | 72 543 Parts 37 | 7 30 Haulers Intercepted 1 | . 1 Recyclers Shooed . | . . Parts Field Recycled . | . . Retrieved Matter . | . . Parts Self-Destructed . | . . Prevented . | . . Kills | -11 -10 ------- Run | Scr Mat Combat Hostiles Destroyed 11 | 1 10 Melee 2 | . 2 Guns 9 | 1 8 Classes Destroyed 5 | 2 3 Worker 2 | . 2 Tunneler 1 | 1 . Hauler 1 | . 1 Watcher 1 | . 1 Grunt 11 | 1 10 Best Kill Streak 4 | 1 4 Combat Bots Only 3 | 1 3 Max Kills in Single Turn 1 | 1 1 Gunslinging . | . . Exploded . | . . Melee 1 | . 1 Uniques/NPCs Destroyed . | . . Combat | -11 -10 -------- Run | Scr Mat Damage Taken 912 | 57 855 Core 258 | 22 236 Absorbed by Shields . | . . Core Remaining (%) 91 | 91 . Volleys Fired 47 | 5 42 Largest 2 | 2 2 Hottest 85 | 60 85 Shots Fired 85 | 10 75 Gun 85 | 10 75 Cannon . | . . Launcher . | . . Special . | . . Kinetic 38 | 5 33 Thermal 47 | 5 42 Explosive . | . . Electromagnetic . | . . Robot Hit Streak 8 | 2 8 Robot Miss Streak 4 | 3 4 Penetration Max . | . . Secondary Targets 2 | . 2 Max Gunslinging Chain 1 | . 1 Shots Hit Robots 51 | 3 48 Core Hits 26 | 3 23 Critical Hits . | . . Critical Kills . | . . Critical Parts Destroyed . | . . Melee Attacks 6 | . 6 Impact . | . . Slashing 6 | . 6 Piercing . | . . Sneak Attacks 1 | . 1 Combat Hostiles . | . . Follow-up Attacks . | . . Damage Inflicted 659 | 43 616 Guns 518 | 43 475 Cannons . | . . Explosions . | . . Melee 141 | . 141 Ramming . | . . Kinetic 210 | 13 197 Thermal 308 | 30 278 Explosive . | . . Electromagnetic . | . . Impact . | . . Slashing 141 | . 141 Piercing . | . . Highest Corruption 1 | . 1 Average Corruption 1 | . 1 Corruption Purged . | . . Effects 1 | . 1 Data Loss (minor) 1 | . 1 Overload Shots . | . . Overflow Damage 32 | . 32 Projectiles . | . . Explosions . | . . Melee 32 | . 32 Knockbacks . | . . Impact . | . . Kinetic . | . . Secondary . | . . Self-Inflicted Damage . | . . Shots . | . . Rammed . | . . Targets Rammed . | . . Kicked . | . . Crushed . | . . Highest Temperature 119 | 12 119 Average Temperature 40 | 10 44 Received Heat Transfer 510 | 30 480 Siege Activations . | . . Robots Corrupted . | . . Combat Hostiles . | . . Parts Fried . | . . Impact Corruptions . | . . Robots Melted . | . . Combat Hostiles . | . . Parts Melted 1 | . 1 Heat Transferred 708 | 75 633 Parts Sabotaged . | . . Parts Stolen . | . . Parts Stripped . | . . Power Chain Reactions . | . . Missiles Intercepted . | . . Alert | -11 -10 ------- Run | Scr Mat Peak Influence 170 | 40 170 Initial . | . . Average 53 | 18 79 Maximum Alert Level . | . . Low Security (%) 100 | 100 100 Level 1 . | . . Level 2 . | . . Level 3 . | . . Level 4 . | . . Level 5 . | . . High Security . | . . Max Security . | . . Squads Dispatched 1 | . 1 Investigation . | . . Extermination . | . . Reinforcement 1 | . 1 Assault . | . . Garrison . | . . Intercept . | . . Construction Impeded . | . . Haulers Reinforced . | . . Stealth | -11 -10 --------- Run | Scr Mat Distress Signals 2 | . 2 Communications Jammed . | . . Distress Signals . | . . Times Spotted 20 | 2 18 Peak Tracking Total 5 | 1 5 Tactical Retreats 1 | 1 . Traps | -11 -10 ------- Run | Scr Mat Traps Triggered 1 | . 1 Indirectly . | . . Trap Hack Attempts . | . . Triggered . | . . Disarmed . | . . Reprogrammed . | . . Reused . | . . Traps Extracted . | . . Installed . | . . Triggered . | . . Machines | -11 -10 ---------- Run | Scr Mat Machines Disabled 2 | . 2 Max in Single Turn 1 | . 1 Machines Sabotaged . | . . Garrisons Compromised . | . . Overloaded Fab Kills . | . . Fab Network Shutdowns . | . . Hacking | -11 -10 --------- Run | Scr Mat Machines Accessed 1 | . 1 Terminals 1 | . 1 Fabricators . | . . Repair Stations . | . . Recycling Units . | . . Scanalyzers . | . . Garrison Access . | . . Total Hacks 2 | . 2 Successful 2 | . 2 Failed . | . . Catastrophic . | . . Database Lockouts . | . . Manual . | . . Terminals 2 | . 2 Fabricators . | . . Repair Stations . | . . Recycling Units . | . . Scanalyzers . | . . Garrison Access . | . . Terminal Hacks 2 | . 2 Record 2 | . 2 Fabricator Hacks . | . . Repair Station Hacks . | . . Recycling Unit Hacks . | . . Scanalyzer . | . . Garrison Access Hacks . | . . Unauthorized Hacks . | . . Terminals . | . . Fabricators . | . . Repair Stations . | . . Recycling Units . | . . Scanalyzers . | . . Garrison Access . | . . Data Cores Recovered . | . . Used . | . . Hacking Detections 1 | . 1 Full Trace Events . | . . Feedback Events . | . . Feedback Blocked . | . . Robot Schematics Acquired . | . . Robots Built . | . . Matter . | . . Time . | . . Total Robot Build Rating . | . . Part Schematics Acquired . | . . Parts Built . | . . Matter . | . . Time . | . . Total Part Build Rating . | . . Parts Repaired . | . . Time . | . . Parts Recycled . | . . Recycled Matter . | . . Retrieved Matter . | . . Retrieved Components . | . . Parts Scanalyzed . | . . Part Schematics Acquired . | . . Parts Damaged . | . . Bothacking | -11 -10 ------------ Run | Scr Mat Used RIF Installer . | . . Robots Hacked . | . . Non-combat . | . . Combat . | . . Robot Hacks Applied . | . . Relay Couplers Released . | . . Robots Rewired . | . . Allies Hacked . | . . Hacks Repelled . | . . Allies | -11 -10 -------- Run | Scr Mat Total Allies . | . . Largest Group . | . . Highest-Rated Group . | . . Highest-Rated Ally . | . . Total Orders . | . . Ally Attacks . | . . Total Damage . | . . Kills . | . . Allies Corrupted . | . . Allies Melted . | . . Intel | -11 -10 ------- Run | Scr Mat Robot Analysis Total . | . . Derelict Logs Recovered . | . . Drone Launches . | . . Drone Recoveries . | . . Exploration | -11 -10 ------------- Run | Scr Mat Turns Passed 1048 | 439 609 Spaces Moved 593 | 338 255 Core 61 | 43 18 Treads . | . . Legs 532 | 295 237 Wheels . | . . Hover . | . . Flight . | . . Fastest Speed 50 | 50 120 Average Speed 131 | 111 159 Slowest Speed 350 | 120 350 Overloaded Moves . | . . Propulsion Burnouts . | . . Robots Hopped . | . . Cave-ins Triggered . | . . Exploration Rate (%) 20 | 11 29 Regions Visited 1 Branch Regions . Pre-discovered Areas . | . . Known Exits Taken . | . . Unknown Exits Taken 1 | 1 . Scrap Searched . | . . Spaces Dug . | . . Terrain Destroyed . | . . Melee . | . . Projectile . | . . AOE . | . . Terrain Rammed . | . . Walls Destroyed . | . . Machines Disabled . | . . Actions | -11 -10 --------- Run | Scr Mat Total 781 | 398 383 Wait 42 | 12 30 Move 592 | 337 255 Hop . | . . Pick Up 40 | 19 21 Fast Attach . | . . Attach 21 | 12 9 Detach 9 | 4 5 Swap . | . . Drop 24 | 9 15 Fire 47 | 5 42 Melee 6 | . 6 Ram . | . . Kick . | . . Crush . | . . Escape Stasis . | . . Rewire . | . . Trap . | . . Miscellaneous . | . . Route ------- -11/Scrapyard -10/Materials (discovered 1 exit: [*Min]) History --------- Turn | Location | Event 2 | -11/Scrapyard | Met Revision 17 139 | -11/Scrapyard | Discovered new exit (range 8) 440 | -11/Scrapyard | Entered Materials 441 | -10/Materials | Build established: Mutant 889 | -10/Materials | Core integrity fell below 50% 1021 | -10/Materials | Discovered new exit (range 10) 1023 | -10/Materials | Core integrity fell below 20% 1049 | -10/Materials | Destroyed by G-34 Mercenary with Small Laser Last Messages --------------- 01021_ EXIT=FOUND 01023_ K-01 Serf collects debris. 01026_ Aluminum Leg destroyed. 01026_ K-01 Serf cleans the Terminal. 01027_ R-06 Scavenger collects Sml. Laser. 01030_ K-01 Serf collects debris. 01030_ R-06 Scavenger collects Aluminum Leg. 01031_ K-01 Serf collects debris. 01034_ R-06 Scavenger collects Lgt. Nuclear Core. 01034_ K-01 Serf collects debris. 01035_ U-05 Engineer lays Concrete. 01036_ System corrupted: Component data lost. 01036_ U-05 Engineer lays Concrete. 01037_ K-01 Serf collects debris. 01037_ R-06 Scavenger collects Heat Sink. 01037_ U-05 Engineer lays Concrete. 01040_ K-01 Serf collects debris. 01041_ K-01 Serf cleans the Terminal. 01045_ K-01 Serf collects debris. 01046_ K-01 Serf cleans the Terminal. Map ----- +----------------------------------------------------+ | ?????????????????????????????????????????????????? | | ?????????????????????????????????????????????????? | | ?????????????????????????????????????????????????? | | ?????????????????????????????????????????????????? | | ?????????????????????????????????????????????????? | | ?????????????????????????????????????????????????? | | ?????????????????????????????????????????????????? | | ?????????????????????????????????????????????????? | | ?????????????????????????????????????????????????? | | ?????????????????????????????????????????????????? | | ???????????????? ?? ???????????????????????? | | ???????????????# ? ???????????????????????? | | ??????????????## ## ???????????????????????? | | ?????????????" # ?? ??????????????????? | | ?????????????"" # ""? #?????????????????? | | ????????????#|| # """ #?????????????????? | | ????????????#"" < # u""" #?????????????????? | | ????????????#!! # #?????#???????????? | | ?????????????"" # u #???? #???????????? | | ?????????????? # """ #??? #???????????? | | ???????????????# ## """ ####+###??????????? | | ???????????????# """ #??????????? | | ???????????????# g +??????????? | | ???????????????#u #??????????? | | ?????????####### #??????????? | | ????# @ #??????????? | | ?? !t k t #??????????? | | ?? ##### #??????????? | | ??? ###?????????????????? | | ???## ""#?????????????????? | | ????# """"" """"" u"""""%[T"#?????????????????? | | ????# ?""""" """"" """""!k""#?????????????????? | | ????????""""" """"" """"" *###???????#?????????? | | ?????????? #???????????????????? | | ?????????? #???????????????#???? | | ??????????""" """"" %""""" #???????????????????? | | ??????????""" """"!%=""""" #???????????????????? | | ??????? """"" """"" """ = #???????????????????? | | ?????# %=#????? ?????????????? | | ?????# % [##################### | | ?????????########## === ! # | | ??????????????????# %% ===% ! # | | ??????????????????# !=! # | | ??????????????? +%[ #####+#############+###### | | ????????????????### #??? ??????#?# """ #? | | ??????????????????# #??? ????????# "T" #? | | ??????????????????#######?? !!???????# #? | | ???????????????????????????"" !!???????# #? | | ??????????????????????????""" !!!??????# #? | | ??????????????????????????""" ??????# """ #? | +----------------------------------------------------+ Best States ------------- Heat Dissipation 35 Energy Generation 10 Energy Capacity 125 Matter Stores 300 Matter Capacity 300 Sight Range 16 Terrain Scan Range 16 Terrain Scan Density 10 Evasion (%) 50 Item Schematics ----------------- None Robot Schematics ------------------ None Fabricated ------------ Nothing Alien Tech Used ----------------- None Achievements -------------- Loot Pinata Uninvited Guest Challenges ------------ None Game ------ Seed BoreReinforcedPick Manual? 0 Play Time 00:36:21 Cumulative 1.3 hours Start 2020.12.05 @ 13:06:06 End 2020.12.05 @ 13:50:03 Sessions 1 Manual Loads 0 Difficulty Rogue Special Mode None Game No. 2 Rogue 2 Adventurer 0 Explorer 0 Win Type - Total 0 Types 0/0/0/0/0/0/0/0/0 Lore% 0 Gallery% 1 Achievement% 1 Wizard Run 0 Options --------- ASCII 0 Keyboard 1 Movement Numpad Keybinds 0 Fullscreen 2 Font 24/Terminus Map View 76x50 Tactical HUD 1 Map Filters NONE Filters NONE Steam 1 RUN: 92d6f201-492c-4a3a-92eb-b9945999b5a0